bitfinex-derivatives/quotes_SOLF0:USTF0_20241103
["timestamp","ask_amount","ask_price","bid_price","bid_amount"]
[1730627259023,2.86,163.27,163.25,6.59347191]
[1730627259218,5.9236,163.27,163.25,6.59347191]
[1730627259623,1.3217,163.3,163.26,6.59347191]
[1730627259828,2.86,163.29,163.26,6.59347191]
[1730627260324,5.9231,163.29,163.26,6.59347191]
[1730627260926,2.86,163.29,163.25,6.59347191]
[1730627261136,9.45347191,163.29,163.23,6.59347191]
[1730627261631,3.0636,163.27,163.23,6.59347191]
[1730627263932,3.0636,163.26,163.23,6.59347191]
[1730627264233,9.45347191,163.29,163.23,6.59347191]
[1730627264441,3.0635,163.27,163.23,6.59347191]
[1730627265424,3.0636,163.27,163.23,6.59347191]
[1730627269164,3.0636,163.27,163.23,9.65767191]
[1730627270245,3.0636,163.27,163.25,6.59347191]
[1730627274929,3.0636,163.27,163.18,1.3755]
[1730627274930,6.59347191,163.27,163.22,6.59347191]
[1730627276041,3.064,163.24,163.22,6.59347191]
[1730627280348,2.86,163.25,163.22,6.59347191]
[1730627280669,3.064,163.24,163.22,6.59347191]
[1730627281548,3.064,163.24,163.23,6.59347191]
[1730627281734,2.86,163.25,163.23,6.59347191]
[1730627281735,5.9238,163.25,163.23,6.59347191]
[1730627281937,1.3217,163.3,163.24,6.59347191]
[1730627282150,2.86,163.29,163.26,6.59347191]
[1730627282341,3.0634,163.27,163.26,6.59347191]
[1730627284148,3.0632,163.28,163.26,6.59347191]
[1730627284341,2.86,163.29,163.26,6.59347191]
[1730627284544,2.86,163.29,163.27,6.59347191]
[1730627285340,5.9232,163.29,163.27,6.59347191]
[1730627285642,147.92887134,163.33,163.27,6.59347191]
[1730627285849,5.9225,163.32,163.29,6.59347191]
[1730627286137,141.33539943,163.33,163.29,6.59347191]
[1730627286345,5.9225,163.32,163.29,6.59347191]
[1730627286957,139.95429943,163.33,163.3,6.59347191]
[1730627287244,142.81429943,163.33,163.3,6.59347191]
[1730627287943,142.81429943,163.33,163.32,6.59347191]
[1730627288441,139.95429943,163.33,163.32,6.59347191]
[1730627289644,3.062,163.35,163.32,6.59347191]
[1730627289954,3.0619,163.36,163.34,6.59347191]
[1730627290736,3.0619,163.35,163.34,6.59347191]
[1730627291539,3.0619,163.35,163.32,6.59347191]
[1730627292145,3.0623,163.33,163.32,6.59347191]
[1730627292656,9.45347191,163.37,163.32,6.59347191]
[1730627293237,3.0622,163.34,163.32,6.59347191]
[1730627293949,3.062,163.35,163.32,6.59347191]
[1730627295551,3.0619,163.36,163.32,9.65597191]
[1730627295737,3.0619,163.36,163.32,6.59347191]
[1730627298110,3.0621,163.35,163.31,6.59347191]
[1730627298256,3.0621,163.35,163.32,6.59347191]
[1730627299852,2.86,163.37,163.34,6.59347191]
[1730627300051,2.86,163.37,163.35,6.59347191]
[1730627300750,3.0615,163.38,163.35,6.59347191]
[1730627301252,62.82625975,163.39,163.34,6.59347191]
[1730627301253,3.0617,163.37,163.34,6.59347191]
[1730627302763,3.0619,163.36,163.34,6.59347191]
[1730627303055,2.86,163.35,163.31,6.59347191]
[1730627303361,3.0624,163.33,163.31,6.59347191]
[1730627308764,3.0624,163.33,163.3,6.59347191]
[1730627311571,6.59347191,163.32,163.28,6.59347191]
[1730627311956,2.86,163.31,163.28,6.59347191]
[1730627313963,3.063,163.3,163.28,6.59347191]
[1730627316152,2.86,163.31,163.27,6.59347191]
[1730627317854,3.0629,163.3,163.27,6.59347191]
[1730627318057,2.86,163.31,163.27,6.59347191]
[1730627318864,3.0629,163.3,163.27,6.59347191]
[1730627319663,2.86,163.31,163.25,35.50348379]
[1730627319664,9.45347191,163.31,163.25,6.59347191]
[1730627319969,3.0636,163.26,163.23,6.59347191]
[1730627320761,2.86,163.27,163.23,6.59347191]
[1730627320958,9.45347191,163.27,163.21,6.59347191]
[1730627321266,9.45347191,163.27,163.21,9.65787191]
[1730627321463,3.0639,163.25,163.21,9.65787191]
[1730627322662,2.86,163.27,163.24,6.59347191]
[1730627322863,2.86,163.27,163.26,6.59347191]
[1730627323266,3.0632,163.29,163.26,6.59347191]
[1730627324570,3.0636,163.26,163.25,6.59347191]
[1730627324758,3.0636,163.26,163.22,3.0642]
[1730627324759,3.0636,163.26,163.23,6.59347191]
[1730627326363,6.59347191,163.29,163.23,6.59347191]
[1730627326364,3.0639,163.25,163.23,6.59347191]
[1730627329187,2.86,163.26,163.21,6.59347191]
[1730627329365,3.0642,163.23,163.21,6.59347191]
[1730627331273,3.0647,163.21,163.2,6.59347191]
[1730627331876,2.86,163.22,163.2,6.59347191]
[1730627332265,5.9245,163.22,163.2,6.59347191]
[1730627332464,2.86,163.22,163.2,6.59347191]
[1730627333375,2.86,163.22,163.21,6.59347191]
[1730627334074,3.0643,163.23,163.21,6.59347191]
[1730627335176,3.0643,163.23,163.2,3.0646]
[1730627335177,3.0643,163.23,163.2,9.65807191]
[1730627335676,3.0642,163.23,163.2,6.59347191]
[1730627336076,6.59347191,163.24,163.18,6.59347191]
[1730627336577,6.59347191,163.24,163.18,9.65847191]
[1730627337978,3.0646,163.21,163.18,9.65847191]
[1730627339176,3.0648,163.2,163.18,9.65847191]
[1730627340383,5.9246,163.21,163.18,9.65847191]
[1730627341080,2.86,163.21,163.17,6.59347191]
[1730627341873,3.0652,163.18,163.15,9.65907191]
[1730627342172,2.86,163.17,163.14,6.59347191]
[1730627343074,5.9254,163.17,163.14,6.59347191]
[1730627344785,2.86,163.17,163.14,6.59347191]
[1730627344991,3.0657,163.16,163.13,6.59347191]
[1730627345885,2.86,163.17,163.14,6.59347191]
[1730627346689,2.86,163.17,163.14,9.65937191]
[1730627346894,2.86,163.17,163.14,6.59347191]
[1730627347385,5.9254,163.17,163.14,6.59347191]
[1730627348582,5.9254,163.17,163.16,6.59347191]
[1730627349885,2.86,163.17,163.16,6.59347191]
[1730627350084,2.86,163.19,163.16,6.59347191]
[1730627350276,2.86,163.19,163.18,6.59347191]
[1730627350985,2.86,163.19,163.15,6.59347191]
[1730627351181,2.86,163.19,163.17,6.59347191]
[1730627351681,5.9251,163.19,163.17,6.59347191]
[1730627354390,2.86,163.19,163.17,6.59347191]
[1730627355579,5.925,163.19,163.17,6.59347191]
[1730627356694,5.925,163.19,163.18,6.59347191]
[1730627356888,2.86,163.19,163.18,6.59347191]
[1730627358692,2.86,163.19,163.17,6.59347191]
[1730627358896,5.9251,163.19,163.17,6.59347191]
[1730627361194,2.86,163.19,163.17,9.65877191]
[1730627361587,2.86,163.19,163.18,6.59347191]
[1730627364089,5.9249,163.19,163.18,6.59347191]
[1730627366502,2.86,163.19,163.18,6.59347191]
[1730627367304,5.9249,163.19,163.17,6.59347191]
[1730627373008,3.0649,163.19,163.17,6.59347191]
[1730627382018,2.86,163.2,163.17,6.59347191]
[1730627382217,5.9248,163.2,163.17,6.59347191]
[1730627382511,2.86,163.2,163.17,6.59347191]
[1730627382715,2.86,163.23,163.18,6.59347191]
[1730627383102,2.86,163.23,163.19,6.59347191]
[1730627383912,2.86,163.23,163.18,6.59347191]
[1730627385019,3.0645,163.22,163.18,9.65857191]
[1730627388201,3.0649,163.2,163.17,6.59347191]
[1730627389316,3.0645,163.22,163.17,6.59347191]
[1730627389621,6.59347191,163.18,163.07,6.59347191]
[1730627389823,6.59347191,163.13,163.07,6.59347191]
[1730627390120,9.45347191,163.13,163.07,6.59347191]
[1730627390816,6.59347191,163.11,163.06,1.3512]
[1730627391357,3.0669,163.09,163.06,1.3512]
[1730627391820,3.0669,163.09,163.07,6.59347191]
[1730627393816,3.0669,163.09,163.06,1.3512]
[1730627394818,3.0669,163.09,163.06,4.4186]
[1730627403817,3.0667,163.1,163.07,3.0672]
[1730627404534,6.59347191,163.11,163.06,1.3512]
[1730627405331,3.0664,163.12,163.08,3.0669]
[1730627406233,3.0665,163.11,163.08,3.0669]
[1730627406525,6.59347191,163.09,163.0,6.59347191]
[1730627406825,6.59347191,163.04,162.99,1.3646]
[1730627407211,9.66137191,163.04,162.99,1.3646]
[1730627409335,3.0684,163.01,162.96,9.23107191]
[1730627409520,6.59347191,163.02,162.96,9.23107191]
[1730627410123,3.0686,163.0,162.96,9.23107191]
[1730627413731,6.59347191,163.02,162.96,9.23107191]
[1730627414117,1.3422,163.05,162.96,9.23107191]
[1730627414118,6.59347191,163.01,162.96,9.23107191]
[1730627415427,6.59347191,162.99,162.95,55.52997607]
[1730627415628,6.59347191,162.97,162.92,6.59347191]
[1730627415836,3.0696,162.95,162.92,6.59347191]
[1730627417224,6.59347191,163.03,162.94,6.59347191]
[1730627417434,6.59347191,163.04,162.98,6.59347191]
[1730627418331,1.2631,163.09,163.01,6.59347191]
[1730627418332,6.59347191,163.06,163.01,6.59347191]
[1730627418939,6.59347191,163.06,162.97,2.9]
[1730627418940,1.2631,163.09,163.05,6.59347191]
[1730627419230,6.59347191,163.1,163.05,6.59347191]
[1730627419433,3.0672,163.07,163.05,6.59347191]
[1730627419645,2.9,163.11,163.01,5.9683]
[1730627419646,6.59347191,163.09,163.03,6.59347191]
[1730627420537,3.067,163.08,163.05,6.59347191]
[1730627422533,3.0672,163.07,163.05,6.59347191]
[1730627424837,6.59347191,163.1,163.05,6.59347191]
[1730627425027,3.0674,163.06,163.05,6.59347191]
[1730627426050,6.59347191,163.09,163.03,6.59347191]
[1730627426261,3.0678,163.04,163.03,6.59347191]
[1730627440555,3.0683,163.01,163.0,42.14492362]
[1730627440739,3.0683,163.01,163.0,35.55145171]
[1730627441140,2.9,163.06,162.98,6.59347191]
[1730627441358,3.0691,162.97,162.96,3.9519]
[1730627441546,3.0691,162.97,162.96,2.6695]
[1730627441746,3.0691,162.97,162.96,9.26297191]
[1730627446556,3.0691,162.97,162.96,6.59347191]
[1730627456683,2.94,163.07,162.96,12.53019049]
[1730627456883,2.94,163.07,163.03,6.59347191]
[1730627457388,3.0678,163.04,163.03,6.59347191]
[1730627458185,3.0677,163.05,163.03,6.59347191]
[1730627458978,3.0678,163.04,163.03,6.59347191]
[1730627460473,3.0675,163.06,163.03,9.66137191]
[1730627460666,3.0675,163.06,163.05,6.59347191]
[1730627476180,3.0673,163.07,163.05,6.59347191]
[1730627476386,3.0673,163.07,163.06,6.59347191]
[1730627491004,2.86,163.1,163.05,6.59347191]
[1730627491005,9.45347191,163.1,163.05,6.59347191]
[1730627491719,3.0674,163.06,163.05,6.59347191]
[1730627497616,2.86,163.06,163.02,6.59347191]
[1730627497825,2.86,163.06,163.01,6.59347191]
[1730627498115,2.86,163.06,163.03,6.59347191]
[1730627499520,3.0678,163.04,163.03,6.59347191]
[1730627502222,3.0681,163.03,163.02,6.59347191]
[1730627503013,9.45347191,163.06,163.0,6.59347191]
[1730627503614,3.0683,163.01,163.0,6.59347191]
[1730627513727,6.59347191,163.08,163.0,6.59347191]
[1730627513931,2.86,163.1,163.07,6.59347191]
[1730627514327,3.0675,163.06,163.02,3.0681]
[1730627514628,3.0675,163.06,163.05,6.59347191]
[1730627523342,3.067,163.09,163.04,6.59347191]
[1730627523528,9.45347191,163.1,163.04,6.59347191]
[1730627523931,3.0679,163.04,163.03,6.59347191]
[1730627526239,3.0683,163.02,163.01,6.59347191]
[1730627526744,3.0685,163.0,162.99,6.59347191]
[1730627528142,2.86,163.02,162.98,6.59347191]
[1730627528343,3.0688,162.99,162.98,6.59347191]
[1730627529743,3.0684,163.01,162.97,6.59347191]
[1730627529945,9.45347191,163.02,162.97,6.59347191]
[1730627530741,3.0692,162.97,162.95,6.59347191]
[1730627531946,2.86,162.98,162.96,6.59347191]
[1730627532289,3.0688,162.99,162.96,6.59347191]
[1730627532548,3.0688,162.99,162.98,6.59347191]
[1730627534354,3.0686,163.0,162.98,6.59347191]
[1730627534650,2.86,163.01,162.99,6.59347191]
[1730627535245,5.9284,163.01,162.99,6.59347191]
[1730627535643,2.86,163.01,162.99,6.59347191]
[1730627536354,3.0685,163.0,162.98,6.59347191]
[1730627537853,7.97887191,163.04,162.98,6.59347191]
[1730627538055,2.86,163.06,163.03,6.59347191]
[1730627539417,3.0678,163.04,163.03,6.59347191]
[1730627539562,2.86,163.09,163.03,6.59347191]
[1730627539859,5.9268,163.09,163.08,6.59347191]
[1730627542159,2.86,163.09,163.08,6.59347191]
[1730627543454,5.9268,163.09,163.08,6.59347191]
[1730627543658,5.9268,163.09,162.98,2.86]
[1730627543659,2.86,163.09,163.06,6.59347191]
[1730627544367,3.0672,163.07,163.06,6.59347191]
[1730627544665,3.0672,163.07,162.98,2.86]
[1730627544666,9.45347191,163.09,163.04,6.59347191]
[1730627544855,3.0672,163.08,163.03,6.59347191]
[1730627545055,9.45347191,163.09,163.03,6.59347191]
[1730627545766,3.0677,163.05,163.03,6.59347191]
[1730627546175,3.0678,163.04,163.03,6.59347191]
[1730627546467,2.86,163.05,163.01,6.59347191]
[1730627547470,3.0678,163.04,163.01,6.59347191]
[1730627547657,2.86,163.05,163.01,6.59347191]
[1730627548167,3.0681,163.03,162.97,1.2998]
[1730627548375,2.86,163.05,163.02,6.59347191]
[1730627548752,5.9276,163.05,163.04,6.59347191]
[1730627549570,5.9276,163.05,163.0,3.0684]
[1730627549571,3.0678,163.04,163.03,6.59347191]
[1730627560478,2.86,163.05,163.02,6.59347191]
[1730627560782,2.86,163.05,162.95,6.59347191]
[1730627560783,6.59347191,163.03,162.95,6.59347191]
[1730627560981,6.59347191,163.01,162.94,6.59347191]
[1730627561166,3.0693,162.96,162.94,6.59347191]
[1730627562374,3.0694,162.95,162.94,6.59347191]
[1730627563079,3.12,163.0,162.94,6.59347191]
[1730627563275,3.0693,162.97,162.95,6.59347191]
[1730627563876,3.12,163.0,162.95,6.59347191]
[1730627564078,3.0693,162.96,162.95,6.59347191]
[1730627567771,3.12,163.0,162.95,6.59347191]
[1730627568085,3.12,162.99,162.97,6.59347191]
[1730627568471,3.0689,162.98,162.97,6.59347191]
[1730627570989,3.0691,162.97,162.95,6.59347191]
[1730627576190,3.12,162.99,162.94,6.59347191]
[1730627576887,6.59347191,162.96,162.9,7.93257191]
[1730627577076,6.59347191,162.96,162.9,6.59347191]
[1730627577295,3.07,162.93,162.9,6.59347191]
[1730627577484,3.07,162.93,162.9,9.66387191]
[1730627579985,3.07,162.93,162.92,6.59347191]
[1730627588300,6.59347191,162.95,162.89,6.59347191]
[1730627588484,3.0701,162.92,162.89,9.66387191]
[1730627589096,3.0701,162.92,162.88,6.59347191]
[1730627589097,6.59347191,162.92,162.88,6.59347191]
[1730627589294,6.59347191,162.91,162.85,6.59347191]
[1730627589699,3.0709,162.88,162.85,6.59347191]
[1730627590295,3.12,162.89,162.85,6.59347191]
[1730627590496,3.0711,162.86,162.85,6.59347191]
[1730627591089,3.0711,162.86,162.84,6.59347191]
[1730627591291,3.0713,162.85,162.84,6.59347191]
[1730627592702,6.59347191,162.88,162.82,6.59347191]
[1730627592901,6.59347191,162.88,162.83,6.59347191]
[1730627593106,3.0713,162.85,162.83,6.59347191]
[1730627594698,3.0713,162.85,162.82,6.59347191]
[1730627595308,3.0716,162.84,162.82,6.59347191]
[1730627597997,3.12,162.89,162.83,6.59347191]
[1730627598298,3.0713,162.85,162.83,6.59347191]
[1730627598898,3.0719,162.83,162.81,6.59347191]
[1730627600212,3.16,162.84,162.81,6.59347191]
[1730627600907,3.16,162.84,162.82,6.59347191]
[1730627601409,3.16,162.87,162.82,6.59347191]
[1730627601642,6.59347191,162.93,162.86,6.59347191]
[1730627601823,9.75347191,162.95,162.9,6.59347191]
[1730627602112,3.0702,162.92,162.9,6.59347191]
[1730627602316,9.75347191,162.95,162.88,6.59347191]
[1730627603508,3.0704,162.91,162.88,6.59347191]
[1730627611221,9.75347191,162.95,162.88,9.66417191]
[1730627611418,3.16,162.94,162.9,6.59347191]
[1730627612212,3.0702,162.92,162.9,6.59347191]
[1730627613414,3.0701,162.92,162.9,6.59347191]
[1730627613714,3.16,162.93,162.91,6.59347191]
[1730627615211,6.2298,162.93,162.91,6.59347191]
[1730627615717,63.27780366,162.97,162.92,6.59347191]
[1730627615924,63.27780366,162.97,162.94,6.59347191]
[1730627616221,63.27780366,162.97,162.93,6.59347191]
[1730627616611,3.0694,162.96,162.93,6.59347191]
[1730627616974,63.27780366,162.97,162.93,6.59347191]
[1730627617022,63.27780366,162.97,162.93,9.66317191]
[1730627617520,63.27780366,162.97,162.85,3.16]
[1730627617521,63.27780366,162.97,162.91,6.59347191]
[1730627617710,6.59347191,162.96,162.91,6.59347191]
[1730627618115,3.0699,162.93,162.91,6.59347191]
[1730627624823,3.0697,162.94,162.91,6.59347191]
[1730627630327,6.59347191,162.96,162.91,6.59347191]
[1730627630528,63.27780366,162.97,162.93,6.59347191]
[1730627631431,3.0696,162.94,162.93,6.59347191]
[1730627633529,3.07,162.93,162.91,6.59347191]
[1730627633734,69.87127557,162.97,162.91,6.59347191]
[1730627634631,3.07,162.92,162.91,6.59347191]
[1730627637326,3.0704,162.91,162.9,6.59347191]
[1730627638337,6.59347191,162.95,162.88,6.59347191]
[1730627638338,3.0706,162.89,162.88,6.59347191]
[1730627639735,3.04,162.93,162.87,6.59347191]
[1730627639736,9.63347191,162.93,162.87,6.59347191]
[1730627640039,3.0711,162.86,162.85,6.59347191]
[1730627642528,3.071,162.87,162.85,6.59347191]
[1730627642732,3.071,162.87,162.86,6.59347191]
[1730627644435,3.04,162.89,162.86,6.59347191]
[1730627644745,3.04,162.89,162.86,9.66457191]
[1730627644746,3.0708,162.88,162.86,9.66457191]
[1730627645527,3.0708,162.88,162.86,6.59347191]
[1730627646241,3.04,162.89,162.85,6.59347191]
[1730627646836,3.071,162.87,162.85,6.59347191]
[1730627647037,3.071,162.87,162.86,6.59347191]
[1730627647238,3.0709,162.88,162.86,6.59347191]
[1730627648043,3.071,162.87,162.86,6.59347191]
[1730627667778,3.04,162.89,162.85,6.59347191]
[1730627667779,3.0711,162.86,162.85,6.59347191]
[1730627672261,3.0717,162.84,162.83,6.59347191]
[1730627676767,3.0717,162.83,162.82,6.59347191]
[1730627679279,3.0721,162.81,162.8,6.59347191]
[1730627680161,3.0719,162.82,162.8,6.59347191]
[1730627680369,2.94,162.85,162.8,6.59347191]
[1730627680762,3.0721,162.81,162.8,6.59347191]
[1730627680963,2.94,162.85,162.8,6.59347191]
[1730627681164,2.94,162.85,162.81,6.59347191]
[1730627681368,3.0718,162.83,162.81,6.59347191]
[1730627683980,3.0719,162.82,162.81,6.59347191]
[1730627691983,3.0717,162.84,162.81,6.59347191]
[1730627692279,2.94,162.86,162.83,6.59347191]
[1730627692983,3.0715,162.84,162.83,6.59347191]
[1730627697385,3.0718,162.83,162.81,6.59347191]
[1730627704696,3.0715,162.85,162.81,9.66547191]
[1730627704891,3.0715,162.85,162.84,6.59347191]
[1730627706982,3.0717,162.83,162.82,6.59347191]
[1730627707298,3.0717,162.83,162.81,6.59347191]
[1730627708387,3.0716,162.84,162.82,6.59347191]
[1730627708597,2.88,162.85,162.82,6.59347191]
[1730627709392,3.0717,162.83,162.82,6.59347191]
[1730627709596,2.88,162.85,162.81,6.59347191]
[1730627709899,2.88,162.85,162.79,6.59347191]
[1730627710402,3.0723,162.8,162.79,6.59347191]
[1730627719408,2.88,162.85,162.79,6.59347191]
[1730627719597,2.88,162.85,162.83,6.59347191]
[1730627720202,3.0715,162.84,162.83,6.59347191]
[1730627722009,2.88,162.86,162.83,6.59347191]
[1730627722304,2.88,162.86,162.84,6.59347191]
[1730627722493,3.0714,162.85,162.84,6.59347191]
[1730627725110,2.88,162.86,162.84,6.59347191]
[1730627725797,63.22382729,162.87,162.84,6.59347191]
[1730627726003,2.88,162.89,162.86,6.59347191]
[1730627726203,2.88,162.89,162.88,6.59347191]
[1730627727300,3.0707,162.89,162.88,6.59347191]
[1730627728704,2.88,162.91,162.88,6.59347191]
[1730627728905,5.9503,162.91,162.9,6.59347191]
[1730627729502,7.87647191,162.94,162.9,6.59347191]
[1730627729707,3.0701,162.92,162.9,6.59347191]
[1730627730108,2.88,162.93,162.9,6.59347191]
[1730627730310,3.0702,162.91,162.88,6.59347191]
[1730627732215,2.88,162.93,162.88,6.59347191]
[1730627732423,3.0706,162.89,162.87,6.59347191]
[1730627735025,6.59347191,162.92,162.87,6.59347191]
[1730627735221,3.0708,162.88,162.87,6.59347191]
[1730627736107,3.0708,162.88,162.85,3.0713]
[1730627736108,3.0711,162.87,162.85,6.59347191]
[1730627736314,6.59347191,162.91,162.85,6.59347191]
[1730627737224,3.0711,162.87,162.85,6.59347191]
[1730627737522,9.47347191,162.89,162.84,6.59347191]
[1730627737720,3.0713,162.86,162.84,6.59347191]
[1730627738314,2.88,162.88,162.84,6.59347191]
[1730627738523,3.0713,162.85,162.82,6.59347191]
[1730627739414,2.88,162.88,162.82,6.59347191]
[1730627739618,3.0716,162.84,162.82,6.59347191]
[1730627739916,9.47347191,162.88,162.82,6.59347191]
[1730627740115,10.86617191,162.88,162.82,6.59347191]
[1730627740316,3.0716,162.84,162.82,6.59347191]
[1730627742219,3.0713,162.86,162.82,6.59347191]
[1730627742425,3.0713,162.86,162.85,6.59347191]
[1730627743328,3.0713,162.86,162.84,6.59347191]
[1730627743826,2.88,162.88,162.84,6.59347191]
[1730627744028,3.0711,162.87,162.84,6.59347191]
[1730627744916,3.0711,162.87,162.84,9.66497191]
[1730627745731,3.0711,162.87,162.84,6.59347191]
[1730627746930,2.88,162.88,162.84,9.66497191]
[1730627747124,2.88,162.88,162.84,6.59347191]
[1730627747533,3.0711,162.86,162.84,6.59347191]
[1730627757331,3.071,162.87,162.84,9.66497191]
[1730627759130,3.071,162.87,162.86,6.59347191]
[1730627761242,1.2825,162.94,162.86,6.59347191]
[1730627761243,7.87597191,162.94,162.86,6.59347191]
[1730627761561,2.86,162.93,162.87,6.59347191]
[1730627761732,3.0705,162.9,162.89,6.59347191]
[1730627762846,3.0707,162.89,162.87,6.59347191]
[1730627763443,2.86,162.93,162.87,6.59347191]
[1730627763749,3.0708,162.88,162.87,6.59347191]
[1730627764637,3.071,162.87,162.86,6.59347191]
[1730627767336,2.86,162.89,162.84,6.59347191]
[1730627767543,9.45347191,162.89,162.84,6.59347191]
[1730627767745,6.59347191,162.88,162.83,6.59347191]
[1730627768044,6.59347191,162.86,162.81,6.59347191]
[1730627768261,2.86,162.85,162.81,6.59347191]
[1730627768741,3.0719,162.82,162.81,6.59347191]
[1730627771641,2.86,162.85,162.8,6.59347191]
[1730627771851,3.0721,162.81,162.8,6.59347191]
[1730627775255,2.86,162.85,162.8,6.59347191]
[1730627775456,2.6811,162.88,162.84,6.59347191]
[1730627775648,2.86,162.86,162.84,6.59347191]
[1730627776151,5.9311,162.86,162.85,6.59347191]
[1730627776681,2.86,162.86,162.84,6.59347191]
[1730627777255,3.0715,162.85,162.84,6.59347191]
[1730627778348,2.86,162.86,162.84,6.59347191]
[1730627778658,3.0713,162.85,162.84,6.59347191]
[1730627779357,3.0713,162.85,162.83,6.59347191]
[1730627782055,2.86,162.86,162.83,6.59347191]
[1730627782363,3.0715,162.84,162.83,6.59347191]
[1730627782551,2.86,162.86,162.81,6.59347191]
[1730627783160,9.45347191,162.86,162.8,6.59347191]
[1730627783357,3.0721,162.82,162.8,6.59347191]
[1730627783761,3.0721,162.81,162.8,6.59347191]
[1730627784949,6.59347191,162.84,162.78,6.59347191]
[1730627785154,3.0726,162.79,162.78,6.59347191]
[1730627792269,2.86,162.83,162.78,6.59347191]
[1730627792454,3.0724,162.8,162.72,6.9177]
[1730627792659,3.0724,162.8,162.79,6.59347191]
[1730627797669,2.86,162.88,162.79,6.59347191]
[1730627797871,2.86,162.88,162.82,6.59347191]
[1730627798777,9.45347191,162.88,162.82,6.59347191]
[1730627799070,3.0716,162.84,162.82,6.59347191]
[1730627800471,9.45347191,162.88,162.79,6.59347191]
[1730627800472,3.0721,162.82,162.79,6.59347191]
[1730627800673,2.86,162.84,162.79,6.59347191]
[1730627801865,3.0725,162.79,162.78,6.59347191]
[1730627803080,6.59347191,162.82,162.76,6.59347191]
[1730627803280,3.0728,162.78,162.76,6.59347191]
[1730627805325,3.0728,162.77,162.76,6.59347191]
[1730627809470,3.0733,162.75,162.74,6.59347191]
[1730627810581,3.0733,162.75,162.73,6.59347191]
[1730627812797,3.0734,162.74,162.73,6.59347191]
[1730627817191,9.45347191,162.76,162.7,6.59347191]
[1730627817406,9.45347191,162.76,162.67,6.59347191]
[1730627817407,6.59347191,162.73,162.67,6.59347191]
[1730627817600,2.86,162.72,162.67,6.59347191]
[1730627818097,5.9339,162.72,162.68,9.66787191]
[1730627818694,3.074,162.71,162.68,9.66787191]
[1730627819497,3.0743,162.7,162.67,9.66817191]
[1730627819999,2.86,162.72,162.67,6.59347191]
[1730627820797,3.0743,162.7,162.67,6.59347191]
[1730627821003,2.86,162.72,162.67,6.59347191]
[1730627821709,6.59347191,162.71,162.66,6.59347191]
[1730627822020,2.86,162.72,162.67,6.59347191]
[1730627823515,3.0742,162.7,162.67,9.66817191]
[1730627826507,5.9338,162.72,162.69,9.66767191]
[1730627827002,2.86,162.72,162.69,9.66767191]
[1730627827792,7.93997191,162.75,162.69,9.66767191]
[1730627827997,2.86,162.74,162.69,6.59347191]
[1730627828193,3.0739,162.72,162.69,6.59347191]
[1730627828706,3.073,162.76,162.72,3.0737]
[1730627829307,5.933,162.77,162.73,9.66697191]
[1730627829613,2.86,162.77,162.75,6.59347191]
[1730627830215,5.9328,162.77,162.75,6.59347191]
[1730627830911,5.9328,162.77,162.74,3.0733]
[1730627831119,5.9328,162.77,162.73,9.66707191]
[1730627831303,3.0731,162.76,162.73,6.59347191]
[1730627832511,3.0731,162.76,162.73,9.66707191]
[1730627833159,2.86,162.77,162.73,9.66707191]
[1730627833402,5.9329,162.77,162.74,6.59347191]
[1730627833603,19.7834,162.87,162.76,6.59347191]
[1730627833604,2.86,162.8,162.76,6.59347191]
[1730627833907,3.0723,162.8,162.77,6.59347191]
[1730627834410,6.59347191,162.83,162.77,6.59347191]
[1730627834719,3.0716,162.84,162.81,6.59347191]
[1730627835208,6.59347191,162.87,162.81,6.59347191]
[1730627835410,3.0714,162.85,162.81,6.59347191]
[1730627839001,6.59347191,162.87,162.81,6.59347191]
[1730627839199,3.0715,162.84,162.81,6.59347191]
[1730627839506,6.59347191,162.87,162.81,6.59347191]
[1730627839710,3.0714,162.85,162.81,6.59347191]
[1730627844229,3.0712,162.86,162.83,6.59347191]
[1730627844813,2.86,162.88,162.84,6.59347191]
[1730627845017,5.9308,162.88,162.84,6.59347191]
[1730627845924,6.59347191,162.9,162.86,6.59347191]
[1730627846119,5.9303,162.91,162.87,6.59347191]
[1730627846325,7.96637191,162.94,162.87,6.59347191]
[1730627846522,2.86,162.93,162.87,6.59347191]